Cogmind - Beta 16 @@@ ROGUE MODE // 2025.11.02 @ 19:14:43 Player: Moodge Result: Destroyed by YI-UF0 with YI-UF0's Doublenader Performance ------------- Evolutions (0) 0 Regions Visited (2) 400 Robots Destroyed (14) 70 Value Destroyed (448) 448 Prototype IDs (0) 0 Alien Tech Used (0) 0 Bonus (0) 0 TOTAL SCORE: 918 Bonus ------- None Cogmind --------- Core Integrity 0/250 Matter 243/300 Energy 250/250 System Corruption 1% Temperature Cool (0) Movement Walking (120) Location -10/Mines Parts ------- > --- POWER (1) -------- Ion Engine > --- PROPULSION (2) --- Aluminum Leg Aluminum Leg > --- UTILITY (2) ------ (None) > --- WEAPON (2) ------- (None) > --- INVENTORY (5) ---- Ion Engine Large Storage Unit Huge Storage Unit Structural Scanner Grenade Launcher Peak State ------------ > --- POWER ------------ Light Nuclear Core > --- PROPULSION ------- Aluminum Leg Aluminum Leg > --- UTILITY ---------- Large Storage Unit Large Storage Unit > --- WEAPON ----------- EM Pulse Gun Grenade Launcher > --- INVENTORY -------- Ion Engine Light Ion Engine Aluminum Leg Aluminum Leg Improved Heat Sink Structural Scanner Visual Processing Unit [Rating: 10] Favorites ----------- Power Light Nuclear Core Engine Ion Engine Power Core Light Nuclear Core Propulsion Aluminum Leg Leg Aluminum Leg Utility Huge Storage Unit Device Sensor Array Storage Huge Storage Unit Weapon EM Pulse Gun Energy Gun EM Pulse Gun Ballistic Gun Light Assault Rifle Launcher Grenade Launcher Special Weapon Welding Torch Build | -11 -10 -10 ------- Run | Yrd Mat Min Slots Evolved . | . . . Power . | . . . Propulsion . | . . . Utility . | . . . Weapon . | . . . Parts Attached 17 | . 14 3 Power 2 | . 2 . Engine 1 | . 1 . Core 1 | . 1 . Reactor . | . . . Propulsion 7 | . 4 3 Treads . | . . . Leg 7 | . 4 3 Wheel . | . . . Hover . | . . . Flight . | . . . Utility 5 | . 5 . Device 1 | . 1 . Storage 4 | . 4 . Processor . | . . . Hackware . | . . . Protection . | . . . Artifact . | . . . Weapon 3 | . 3 . Energy Gun 1 | . 1 . Energy Cannon . | . . . Ballistic Gun . | . . . Ballistic Cannon . | . . . Launcher 1 | . 1 . Special Weapon 1 | . 1 . Impact Weapon . | . . . Slashing Weapon . | . . . Piercing Weapon . | . . . Special Melee Weapon . | . . . Unidentified Prototypes . | . . . Parts Lost 10 | . 10 . Power 2 | . 2 . Propulsion 2 | . 2 . Utility 1 | . 1 . Weapon 5 | . 5 . Highest Loss Streak 4 | . 4 . To Critical Strikes . | . . . Average Backups 12 | 6 10 15 Power 2 | 1 2 1 Propulsion 3 | 4 2 4 Utility 6 | . 5 8 Weapon . | 1 . . Tool/Special . | . . . Unused Backups 20 | . 10 10 Power 2 | . . 2 Propulsion 7 | . 6 1 Utility 8 | . 2 6 Weapon 3 | . 2 1 Tool/Special . | . . . Average Slot Usage (%) 88 | . 97 67 Engine 4 | . . 14 Core 9 | . 13 . Leg 28 | . 28 28 Device 1 | . 1 . Storage 25 | . 25 24 Energy Gun 9 | . 13 . Launcher 6 | . 9 . Special Weapon 2 | . 2 . Peak Build Rating 10 | 6 10 6 Average Rating 8 | 6 9 5 On Entrance 6 | 6 6 6 Avg Prop Armor Cover (%) 14 | . . 14 Naked Turns . | . . . Heaviest Build 170 | 11 170 165 Greatest Support 20 | 20 20 20 Greatest Overweight (x) 8 | . 8 8 Average Overweight (x) 4 | . 3 6 Largest Inventory Capacity 25 | 8 25 25 Average Capacity 21 | 8 20 24 Most Carried 17 | 6 16 17 Average Carried 12 | 6 10 15 Final Capacity 25 | 8 25 5 Final Carried 15 | 6 15 5 Class Distribution -------------------- 100% | Mutant Dominant Class ---------------- Mutant | -10/Materials Mutant | -10/Mines Resources | -11 -10 -10 ----------- Run | Yrd Mat Min Matter Collected 353 | 200 153 . Remotely . | . . . Salvage Created 608 | . 608 . Parts 34 | . 34 . Haulers Intercepted . | . . . Recyclers Shooed 1 | . 1 . Parts Field Recycled . | . . . Retrieved Matter . | . . . Parts Self-Destructed . | . . . Prevented . | . . . Parts Restored . | . . . Kills | -11 -10 -10 ------- Run | Yrd Mat Min Combat Hostiles Destroyed 11 | . 11 . Guns 10 | . 10 . Classes Destroyed 3 | . 3 . Recycler 1 | . 1 . Watcher 2 | . 2 . Grunt 11 | . 11 . Best Kill Streak 4 | . 4 . Combat Bots Only 4 | . 4 . Max Kills in Single Turn 1 | . 1 . Gunslinging . | . . . Exploded . | . . . Melee . | . . . Uniques/NPCs Destroyed . | . . . Combat | -11 -10 -10 -------- Run | Yrd Mat Min Hostile Shots Fired 145 | . 133 12 Missed 37 | . 32 5 Hits 108 | . 101 7 Projectile 108 | . 101 7 Critical Strikes 1 | . 1 . Part Disruptions 2 | . . 2 Damage Taken 1205 | . 1108 97 Core 266 | . 226 40 Absorbed by Shields . | . . . Regen/Repaired (Parts) 42 | . 42 . Core Remaining (%) 100 | 100 . . Volleys Fired 53 | . 53 . Largest 2 | . 2 . Hottest 70 | . 70 . Shots Fired 69 | . 69 . Gun 69 | . 69 . Cannon . | . . . Launcher . | . . . Special . | . . . Kinetic 20 | . 20 . Thermal 14 | . 14 . Explosive . | . . . Electromagnetic 35 | . 35 . Robot Hit Streak 8 | . 8 . Robot Miss Streak 3 | . 3 . Penetration Max . | . . . Secondary Targets . | . . . Shots Hit Robots 48 | . 48 . Core Hits 30 | . 30 . Critical Kills . | . . . Critical Parts Destroyed . | . . . Critical Strikes 2 | . 2 . Corrupt 2 | . 2 . Melee Attacks . | . . . Impact . | . . . Slashing . | . . . Piercing . | . . . Sneak Attacks . | . . . Combat Hostiles . | . . . Follow-up Attacks . | . . . Damage Inflicted 808 | . 808 . Guns 651 | . 651 . Cannons . | . . . Explosions 157 | . 157 . Melee . | . . . Ramming . | . . . Kinetic 124 | . 124 . Thermal 282 | . 282 . Explosive . | . . . Electromagnetic 402 | . 402 . Impact . | . . . Slashing . | . . . Piercing . | . . . Highest Corruption 1 | . 1 1 Average Corruption 1 | . 1 1 Corruption Purged . | . . . Corruption Blocked . | . . . Effects 26 | . 19 7 Message Errors 9 | . 7 2 Matter Fused 6 | . 4 2 Heat Flow Errors 1 | . 1 . Energy Discharges 2 | . 1 1 Parts Fused 1 | . . 1 Data Loss (minor) 4 | . 3 1 Data Loss (major) 1 | . 1 . Alerts 2 | . 2 . Overload Shots . | . . . Overflow Damage 3 | . 3 . Projectiles . | . . . Explosions 3 | . 3 . Melee . | . . . Knockbacks . | . . . Impact . | . . . Kinetic . | . . . Secondary . | . . . Self-Inflicted Damage 12 | . 12 . Shots 1 | . 1 . Rammed . | . . . Targets Rammed . | . . . Kicked . | . . . Crushed . | . . . Highest Temperature 232 | . 232 2 Average Temperature 60 | . 61 1 Received Heat Transfer 624 | . 504 120 Siege Activations . | . . . Martial Activations . | . . . Shielding Activations . | . . . Robots Disrupted 1 | . 1 . Combat Hostiles 1 | . 1 . Robots Corrupted 1 | . 1 . Combat Hostiles 1 | . 1 . Parts Fried . | . . . Impact Corruptions . | . . . Robots Melted . | . . . Combat Hostiles . | . . . Parts Melted 1 | . 1 . Heat Transferred 520 | . 520 . Parts Sabotaged . | . . . Parts Stolen . | . . . Parts Stripped . | . . . Power Chain Reactions 2 | . 2 . Alert | -11 -10 -10 ------- Run | Yrd Mat Min Maximum Alert Level . | . . . Low Security (%) 100 | 100 100 100 Level 1 . | . . . Level 2 . | . . . Level 3 . | . . . Level 4 . | . . . Level 5 . | . . . High Security . | . . . Max Security . | . . . Peak Influence 95 | . 95 . Initial . | . . . Average 7 | . 10 . Influence Increases 312 | . 312 . Destroy 0b10 Robot/C 220 | . 220 . Destroy 0b10 Robot/NC 15 | . 15 . Destroy Leader 44 | . 44 . Trap Triggered on 0b10 10 | . 10 . Successful Hack 5 | . 5 . Disable Machine 15 | . 15 . Destroy Structure 3 | . 3 . Influence Decreases 312 | . 312 . Time Decay 252 | . 252 . Lost Part 60 | . 60 . Squads Dispatched 3 | . 3 . Investigation 1 | . 1 . Extermination . | . . . Reinforcement 2 | . 2 . Assault . | . . . Garrison . | . . . Intercept . | . . . Searches Triggered . | . . . Construction Impeded . | . . . Haulers Reinforced . | . . . Active Scanning Responses . | . . . Cargo Convoy Interrupts . | . . . Stealth | -11 -10 -10 --------- Run | Yrd Mat Min Distress Signals 2 | . 2 . Communications Jammed . | . . . Distress Signals . | . . . Times Spotted 37 | . 27 10 Peak Tracking Total 11 | . 6 11 Tactical Retreats . | . . . Traps | -11 -10 -10 ------- Run | Yrd Mat Min Traps Triggered . | . . . Indirectly . | . . . Trap Hack Attempts . | . . . Triggered . | . . . Disarmed . | . . . Reprogrammed 6 | . 6 . Reused 1 | . 1 . Traps Extracted . | . . . Installed . | . . . Triggered 1 | . 1 . Machines | -11 -10 -10 ---------- Run | Yrd Mat Min Machines Disabled 1 | . 1 . Max in Single Turn 1 | . 1 . Machines Repaired . | . . . Machines Dismantled . | . . . Machines Sabotaged . | . . . Overloaded Fab Kills . | . . . Hacking | -11 -10 -10 --------- Run | Yrd Mat Min Machines Accessed 5 | . 5 . Terminals 4 | . 4 . Fabricators . | . . . Repair Stations 1 | . 1 . Recycling Units . | . . . Scanalyzers . | . . . Garrison Access . | . . . Total Hacks 14 | . 14 . Successful 9 | . 9 . Failed 5 | . 5 . Catastrophic . | . . . Database Lockouts . | . . . Manual 12 | . 12 . Terminals 12 | . 12 . Fabricators . | . . . Repair Stations 2 | . 2 . Recycling Units . | . . . Scanalyzers . | . . . Garrison Access . | . . . Terminal Hacks 1 | . 1 . Reprogram Traps 1 | . 1 . Fabricator Hacks . | . . . Repair Station Hacks 2 | . 2 . Scan Component 1 | . 1 . Repair 1 | . 1 . Recycling Unit Hacks . | . . . Scanalyzer . | . . . Garrison Access Hacks . | . . . Unauthorized Hacks 6 | . 6 . Terminals 6 | . 6 . Assimilate 2 | . 2 . Botnet 4 | . 4 . Fabricators . | . . . Repair Stations . | . . . Recycling Units . | . . . Scanalyzers . | . . . Garrison Access . | . . . Data Cores Recovered . | . . . Used . | . . . Hacking Detections 3 | . 3 . Full Trace Events 1 | . 1 . Feedback Events 1 | . 1 . Corruption 1 | . 1 . Feedback Blocked . | . . . Robot Schematics Acquired . | . . . Robots Built . | . . . Authchips . | . . . Time . | . . . Total Robot Build Rating . | . . . Part Schematics Acquired . | . . . Parts Built . | . . . Authchips . | . . . Time . | . . . Total Part Build Rating . | . . . Part Studies Acquired . | . . . Parts Repaired 1 | . 1 . Time 38 | . 38 . Parts Recycled . | . . . Recycled Matter . | . . . Retrieved Matter . | . . . Retrieved Components . | . . . Parts Scanalyzed . | . . . Part Schematics Acquired . | . . . Parts Damaged . | . . . Bothacking | -11 -10 -10 ------------ Run | Yrd Mat Min Used RIF Installer . | . . . Robots Hacked . | . . . Non-combat . | . . . Combat . | . . . Robot Hacks Applied . | . . . Relay Couplers Released . | . . . Fabnet Peak Effective % . | . . . Robots Rewired . | . . . Allies Hacked . | . . . Hacks Repelled . | . . . Allies | -11 -10 -10 -------- Run | Yrd Mat Min Total Allies . | . . . Largest Group . | . . . Highest-Rated Group . | . . . Highest-Rated Ally . | . . . Total Orders . | . . . Ally Attacks . | . . . Total Damage . | . . . Kills . | . . . Allies Corrupted . | . . . Allies Melted . | . . . Intel | -11 -10 -10 ------- Run | Yrd Mat Min Active Infowar (turns) 274 | . 274 . Sensors 274 | . 274 . Robot Analysis Total . | . . . Derelict Logs Recovered 1 | . . 1 Drone Launches . | . . . Drone Recoveries . | . . . Exploration | -11 -10 -10 ------------- Run | Yrd Mat Min Turns Passed 3008 | 8 2121 879 Spaces Moved 653 | 7 489 157 Core . | . . . Treads . | . . . Legs 653 | 7 489 157 Wheels . | . . . Hover . | . . . Flight . | . . . Fastest Speed 120 | 120 120 120 Average Speed 417 | 120 377 555 Slowest Speed 680 | 120 680 680 Overloaded Moves . | . . . Propulsion Burnouts . | . . . Robots Hopped . | . . . Potential Cave-ins . | . . . Cave-ins Triggered . | . . . Exploration Rate (%) 35 | 2 77 28 Regions Visited 2 Branch Regions 1 Pre-discovered Areas . | . . . Known Exits Taken . | . . . Unknown Exits Taken 2 | 1 1 . Scrap Searched . | . . . Spaces Dug . | . . . Terrain Destroyed 2 | . 2 . Melee . | . . . Projectile . | . . . AOE 2 | . 2 . Terrain Rammed . | . . . Walls Destroyed . | . . . Machines Disabled . | . . . Actions | -11 -10 -10 --------- Run | Yrd Mat Min Total 875 | 6 705 164 Wait 117 | . 116 1 Move 651 | 6 488 157 Hop . | . . . Pick Up 27 | . 26 1 Fast Attach . | . . . Attach 10 | . 10 . Detach 1 | . . 1 Swap 8 | . 5 3 Drop 8 | . 7 1 Fire 53 | . 53 . Melee . | . . . Ram . | . . . Kick . | . . . Crush . | . . . Escape Stasis . | . . . Rewire . | . . . Trap . | . . . Miscellaneous . | . . . Route ------- -11/Scrapyard -10/Materials (discovered 4 exits: [*Mat x2] / [*Min x2]) -10/Mines (discovered 1 exit: [*Sub]) History --------- Turn | Location | Event 1 | -11/Scrapyard | Discovered new exit (range 2) 9 | -11/Scrapyard | Entered Materials 127 | -10/Materials | Core integrity fell below 50% 153 | -10/Materials | Lost 4 parts (2n2w) 280 | -10/Materials | Repaired Lgt. Nuclear Core 302 | -10/Materials | Build established: Mutant 568 | -10/Materials | Discovered new exit (range 16) 1212 | -10/Materials | Discovered new exit (range 12) 1369 | -10/Materials | Discovered new exit (range 3) 2025 | -10/Materials | Discovered new exit (range 16) 2122 | -10/Materials | Core integrity fell below 20% 2130 | -10/Materials | Entered Mines 2152 | -10/Mines | Lost 3 parts (1p2w) 2426 | -10/Mines | YI-UF0 nonchalantly dropped a Grenade Launcher on the ground 2642 | -10/Mines | Discovered new exit (range 14) 2963 | -10/Mines | Learned 2 Materials zone layouts 2980 | -10/Mines | Assembled infested the area 3009 | -10/Mines | Destroyed by YI-UF0 with YI-UF0's Doublenader Last Messages --------------- Acquired Grenade Launcher. YI-UF0 mumbles something. 7DQB5O|L< |SW52RAUGDRO3|M6CZLSIC YI-UF0 mumbles something. 3Z%2ONJLUVVKKYXAJM&KYTVO,C K-01 Serf collects debris. System corrupted: Aluminum Leg fused. YI-UF0 mumbles something. K-01 Serf collects debris. System corrupted: Component data lost. Acquired derelict log, extracted data. Data stored: Materials zone layouts (x2). ALERT: Infestation in the mines, dispatching Demolisher response squad. Discarded Aluminum Leg. Dropped Huge Storage Unit. T-07 Excavator destroyed. Map ----- +----------------------------------------------------+ | ????????????# ##########????????????????????????? | | ??????####### #????????????????????????? | | ??????# ## ##### #????????????????????????? | | ??????# ##### ## #??????????????????????????????? | | ????????##### ## #??????????????????????????????? | | ???????## ##?????????????????????????????? | | ???????# #?????????????????????????????? | | ???????# ##????????????????????????????? | | ???????## #????????????????????????????? | | ????????# ## #??????????#?????????????????? | | ????????# #### #????????? ?????????????????? | | ????????# #??# ##?????????? ?????????????????? | | ????????# #??## #??????????? ##???????????????? | | ????????# #???## #??????????? ##??????????????? | | ????##### ##???? #??????????? ###????????????? | | ????# ## ??? #???????????# ##???????????? | | ????# ####### ???###???????????# #???????????? | | ?#### ####??# #???????????????## #???????????? | | ## #### ###???????????### #?????????##?? | | # ## ##?????????## #???????? #?? | | # #?????????# ##????? ???? | | # """" ##????????# #### #?????? | | ## """" ###??????# !! #?????? | | ?# """" ##?????## =!= #?????? | | ?# ########a #!!!= """ #????? | | ?# @ a%*##!= """ #????? | | ?# g ##* """ ??????? | | ?## ############## ##??????? | | ??## ##????????????## ######???????? | | ???#### ### ##??????????????####????????????? | | ??????### ##?####???????????????????????????????? | | ????????####?????????????????????????????????????? | | ?????????????????????????????????????????????????? | | ?????????????????????????????????????????????????? | | ?????????????????????????????????????????????????? | | ?????????????????????????????????????????????????? | | ?????????????????????????????????????????????????? | | | | | | | | | | | | | | | | | | | | | | | | | | | +----------------------------------------------------+ Best States ------------- Heat Dissipation 25 Energy Generation 14 Energy Capacity 250 Matter Stores 300 Matter Capacity 300 Sight Range 16 Robot Scan Range 14 Terrain Scan Density 10 Evasion (%) 55 Item Schematics ----------------- None Robot Schematics ------------------ None Fabricated ------------ Nothing Repaired ---------- Lgt. Nuclear Core | 16% | -10/Materials Studied --------- None Alien Tech Used ----------------- None Achievements -------------- None Challenges ------------ None Game ------ Seed PitchforkCompositeTerrabomb Manual? 0 Play Time 00:11:50 Cumulative 25.0 hours Start 2025.11.02 @ 19:04:30 End 2025.11.02 @ 19:14:43 Sessions 1 Manual Loads 0 Difficulty Rogue Special Mode None Game No. 83 Rogue 83 Adventurer 0 Explorer 0 Win Type - Total 0 Types 0/0/0/0/0/0/0/0/0/0 Lore% 10 Gallery% 22 Achievement% 18 Wizard Run 0 Options --------- Layout 1 ASCII 0 Keyboard 0 Movement Mouse Keybinds 0 Fullscreen 1 Font 32/SmallcapsGlow Map View 50x35 Zoom Use 0% Tactical HUD 0 Map Filters NONE Filters NONE Steam 1 RUN: ede063c8-8666-4de5-be1e-d878c27ceffb